fUST/lending_fUST_20240818
["ID","MTS","AMOUNT","RATE_DAILY","PERIOD"]
[335217009,1723987842782,-500.0,0.00016438,2]
[335217010,1723987842793,-500.0,0.00016438,2]
[335217011,1723987842806,-500.0,0.00016438,2]
[335217012,1723987842817,-500.0,0.00016438,2]
[335217013,1723987842827,-500.0,0.00016438,2]
[335217014,1723987842837,-500.0,0.00016438,2]
[335217015,1723987842848,-500.0,0.00016438,2]
[335217016,1723987842860,-500.0,0.00016438,2]
[335217017,1723987842870,-500.0,0.00016438,2]
[335217018,1723987842881,-500.0,0.00016438,2]
[335217019,1723987842890,-500.0,0.00016438,2]
[335217020,1723987842901,-500.0,0.00016438,2]
[335217021,1723987842911,-500.0,0.00016438,2]
[335217022,1723987842923,-500.0,0.00016438,2]
[335217023,1723987842933,-500.0,0.00016438,2]
[335217024,1723987842944,-501.22456477,0.00016438,2]
[335217025,1723987842954,-500.0,0.00016438,2]
[335217026,1723987842964,-500.0,0.00016438,2]
[335217027,1723987842974,-500.0,0.00016438,2]
[335217028,1723987842983,-500.0,0.00016438,2]
[335217029,1723987842993,-500.0,0.00016438,2]
[335217030,1723987843002,-500.0,0.00016438,2]
[335217031,1723987843012,-500.0,0.00016438,2]
[335217032,1723987843023,-500.0,0.00016438,2]
[335217033,1723987843035,-500.0,0.00016438,2]
[335217034,1723987843047,-471.66054734,0.00016438,2]
[335217036,1723987843056,-500.0,0.00016438,2]
[335217038,1723987843068,-500.0,0.00016438,2]
[335217040,1723987843078,-571.99,0.00016438,2]
[335217041,1723987843087,-503.82090815,0.00016438,2]
[335217044,1723987843097,-500.0,0.00016438,2]
[335217047,1723987843108,-7337.88,0.00016438,2]
[335217049,1723987843117,-520.26,0.00016438,2]
[335217051,1723987843127,-500.0,0.00016438,2]
[335217053,1723987843136,-500.0,0.00016438,2]
[335217054,1723987843147,-500.0,0.00016438,2]
[335217056,1723987843156,-500.0,0.00016438,2]
[335217058,1723987843167,-500.0,0.00016438,2]
[335217059,1723987843176,-500.0,0.00016438,2]
[335217060,1723987843186,-500.0,0.00016438,2]
[335217062,1723987843196,-500.0,0.00016438,2]
[335217063,1723987843206,-398.32735633,0.00016438,2]
[335217065,1723987843216,-500.0,0.00016438,2]
[335217066,1723987843226,-506.2734219,0.00016438,2]
[335217067,1723987843236,-512.39141363,0.00016438,2]
[335217068,1723987843245,-500.0,0.00016438,2]
[335217069,1723987843254,-179.59121993,0.00016438,2]
[335217070,1723987843264,-504.98050766,0.00016438,2]
[335217071,1723987843273,-500.0,0.00016438,2]
[335217072,1723987843283,-202.48729624,0.00016438,2]
[335217073,1723987843294,-500.0,0.00016438,2]
[335217074,1723987843306,-607.95,0.00016438,2]
[335217075,1723987843316,-840.77,0.00016438,2]
[335217076,1723987843325,-520.733221,0.00016438,2]
[335217077,1723987843335,-501.47494704,0.00016438,2]
[335217078,1723987843345,-500.0,0.00016438,2]
[335217079,1723987843354,-1000.0,0.00016438,2]
[335217080,1723987843470,-500.0,0.00016438,2]
[335217081,1723987843479,-500.0,0.00016438,2]
[335217082,1723987843489,-500.0,0.00016438,2]
[335217083,1723987843498,-503.35131488,0.00016438,2]
[335217084,1723987843508,-500.0,0.00016438,2]
[335217085,1723987843517,-500.0,0.00016438,2]
[335217086,1723987843526,-500.0,0.00016438,2]
[335217087,1723987843536,-505.01363414,0.00016438,2]
[335217088,1723987843546,-500.0,0.00016438,2]
[335217089,1723987843557,-943.8,0.00016438,2]
[335217090,1723987843566,-500.0,0.00016438,2]
[335217091,1723987843576,-500.0,0.00016438,2]
[335217092,1723987843585,-500.0,0.00016438,2]
[335217093,1723987843594,-500.0,0.00016438,2]
[335217094,1723987843604,-500.0,0.00016438,2]
[335217095,1723987843614,-500.0,0.00016438,2]
[335217096,1723987843624,-500.0,0.00016438,2]
[335217097,1723987843633,-500.0,0.00016438,2]
[335217098,1723987843643,-500.0,0.00016438,2]
[335217099,1723987843652,-500.0,0.00016438,2]
[335217100,1723987843662,-500.0,0.00016438,2]
[335217101,1723987843671,-560.14527885,0.00016438,2]
[335217102,1723987843681,-500.0,0.00016438,2]
[335217103,1723987843690,-500.0,0.00016438,2]
[335217105,1723987843699,-502.82990042,0.00016438,2]
[335217107,1723987843709,-500.0,0.00016438,2]
[335217109,1723987843718,-500.0,0.00016438,2]
[335217110,1723987843727,-890.54,0.00016438,2]
[335217111,1723987843737,-398.80764802,0.00016438,2]
[335217112,1723987843746,-296.38787265,0.00016438,2]
[335217113,1723987843756,-500.0,0.00016438,2]
[335217114,1723987843765,-500.0,0.00016438,2]
[335217115,1723987843774,-500.0,0.00016438,2]
[335217116,1723987843784,-500.0,0.00016438,2]
[335217117,1723987843793,-185.56289874,0.00016438,2]
[335217118,1723987843804,-508.24952635,0.00016438,2]
[335217119,1723987843813,-500.0,0.00016438,2]
[335217120,1723987843823,-500.0,0.00016438,2]
[335217121,1723987843833,-500.0,0.00016438,2]
[335217122,1723987843842,-500.0,0.00016438,2]
[335217123,1723987843851,-500.0,0.00016438,2]
[335217124,1723987843860,-507.59574381,0.00016438,2]
[335217125,1723987843870,-508.84744568,0.00016438,2]
[335217126,1723987843879,-503.19221035,0.00016438,2]
[335217127,1723987843888,-500.0,0.00016438,2]
[335217128,1723987843898,-505.68544623,0.00016438,2]
[335217129,1723987843908,-500.0,0.00016438,2]
[335217130,1723987843918,-829.06,0.00016438,2]
[335217131,1723987843927,-500.0,0.00016438,2]
[335217132,1723987843937,-500.0,0.00016438,2]
[335217133,1723987843946,-500.0,0.00016438,2]
[335217134,1723987843956,-549.04321915,0.00016438,2]
[335217135,1723987843965,-635.3239602,0.00016438,2]
[335217136,1723987843975,-500.0,0.00016438,2]
[335217137,1723987843984,-500.0,0.00016438,2]
[335217138,1723987843994,-500.0,0.00016438,2]
[335217139,1723987844004,-500.0,0.00016438,2]
[335217140,1723987844014,-500.0,0.00016438,2]
[335217141,1723987844023,-500.0,0.00016438,2]
[335217142,1723987844033,-500.0,0.00016438,2]
[335217143,1723987844043,-500.0,0.00016438,2]
[335217144,1723987844053,-7447.96,0.00016438,2]
[335217145,1723987844063,-500.0,0.00016438,2]
[335217146,1723987844072,-7447.96,0.00016438,2]
[335217147,1723987844082,-7447.96,0.00016438,2]
[335217148,1723987844091,-7447.96,0.00016438,2]
[335217149,1723987844101,-7447.96,0.00016438,2]
[335217150,1723987844111,-7447.96,0.00016438,2]
[335217151,1723987844121,-7447.96,0.00016438,2]
[335217152,1723987844131,-7447.96,0.00016438,2]
[335217153,1723987844141,-500.0,0.00016438,2]
[335217154,1723987844150,-1397.78,0.00016438,2]
[335217155,1723987844160,-7447.96,0.00016438,2]
[335217156,1723987844169,-7447.96,0.00016438,2]
[335217157,1723987844179,-7447.96,0.00016438,2]
[335217158,1723987844188,-500.0,0.00016438,2]
[335217159,1723987844198,-7447.96,0.00016438,2]
[335217160,1723987844207,-7447.96,0.00016438,2]
[335217161,1723987844217,-7447.96,0.00016438,2]
[335217162,1723987844226,-7447.96,0.00016438,2]
[335217163,1723987844235,-7447.96,0.00016438,2]
[335217164,1723987844245,-7447.96,0.00016438,2]
[335217165,1723987844255,-7447.96,0.00016438,2]
[335217166,1723987844264,-500.0,0.00016438,2]
[335217167,1723987844274,-7447.96,0.00016438,2]
[335217168,1723987844283,-500.0,0.00016438,2]
[335217169,1723987844292,-7447.96,0.00016438,2]
[335217170,1723987844305,-7447.96,0.00016438,2]
[335217171,1723987844314,-7447.96,0.00016438,2]
[335217172,1723987844324,-7447.96,0.00016438,2]
[335217173,1723987844333,-500.0,0.00016438,2]
[335217174,1723987844343,-7448.06975099,0.00016438,2]
[335217175,1723987844352,-500.0,0.00016438,2]
[335217176,1723987844361,-500.0,0.00016438,2]
[335217177,1723987844370,-476.72317009,0.00016438,2]
[335217178,1723987844381,-674.09,0.00016438,2]
[335217179,1723987844390,-500.0,0.00016438,2]
[335217180,1723987844399,-500.0,0.00016438,2]
[335217181,1723987844408,-553.69321237,0.00016438,2]
[335217182,1723987844417,-500.0,0.00016438,2]
[335217183,1723987844427,-500.0,0.00016438,2]
[335217184,1723987844436,-276.85208661,0.00016438,2]
[335217185,1723987844445,-500.0,0.00016438,2]
[335217186,1723987844455,-500.0,0.00016438,2]
[335217187,1723987844464,-500.0,0.00016438,2]
[335217188,1723987844474,-512.97424818,0.00016438,2]
[335217189,1723987844483,-1315.67,0.00016438,2]
[335217190,1723987844493,-500.0,0.00016438,2]
[335217191,1723987844502,-500.0,0.00016438,2]
[335217192,1723987844512,-331.48780244,0.00016438,2]
[335217193,1723987844521,-289.56560944,0.00016438,2]
[335217194,1723987844530,-500.0,0.00016438,2]
[335217195,1723987844539,-500.0,0.00016438,2]
[335217196,1723987844549,-500.0,0.00016438,2]
[335217197,1723987844559,-500.0,0.00016438,2]
[335217198,1723987844568,-500.0,0.00016438,2]
[335217199,1723987844577,-500.0,0.00016438,2]
[335217200,1723987844586,-500.0,0.00016438,2]
[335217201,1723987844596,-500.0,0.00016438,2]
[335217202,1723987844605,-500.0,0.00016438,2]
[335217203,1723987844614,-500.0,0.00016438,2]
[335217204,1723987844624,-500.0,0.00016438,2]
[335217205,1723987844633,-500.0,0.00016438,2]
[335217206,1723987844643,-500.0,0.00016438,2]
[335217207,1723987844652,-500.0,0.00016438,2]
[335217208,1723987844662,-500.0,0.00016438,2]
[335217209,1723987844671,-500.0,0.00016438,2]
[335217210,1723987844680,-500.0,0.00016438,2]
[335217211,1723987844690,-500.0,0.00016438,2]
[335217212,1723987844699,-500.0,0.00016438,2]
[335217213,1723987844708,-500.0,0.00016438,2]
[335217214,1723987844717,-507.81605481,0.00016438,2]
[335217215,1723987844727,-643.29991534,0.00016438,2]
[335217216,1723987844736,-1132.64,0.00016438,2]
[335217217,1723987844746,-831.79,0.00016438,2]
[335217218,1723987844755,-500.0,0.00016438,2]
[335217219,1723987844765,-505.55103988,0.00016438,2]
[335217220,1723987844774,-500.0,0.00016438,2]
[335217221,1723987844783,-500.0,0.00016438,2]
[335217222,1723987844792,-500.0,0.00016438,2]
[335217223,1723987844802,-272.91192267,0.00016438,2]
[335217224,1723987844812,-500.0,0.00016438,2]
[335217225,1723987844821,-506.33476054,0.00016438,2]
[335217226,1723987844831,-500.0,0.00016438,2]
[335217227,1723987844840,-509.9356731,0.00016438,2]
[335217228,1723987844849,-500.0,0.00016438,2]
[335217229,1723987844859,-500.0,0.00016438,2]
[335217230,1723987844868,-505.09928173,0.00016438,2]
[335217231,1723987844877,-508.39620964,0.00016438,2]
[335217232,1723987844887,-500.0,0.00016438,2]
[335217233,1723987844897,-509.92772392,0.00016438,2]
[335217234,1723987844907,-500.0,0.00016438,2]
[335217235,1723987844916,-513.21989605,0.00016438,2]
[335217236,1723987844925,-500.0,0.00016438,2]
[335217237,1723987844935,-500.0,0.00016438,2]
[335217238,1723987844945,-500.0,0.00016438,2]
[335217239,1723987844954,-500.0,0.00016438,2]
[335217240,1723987844964,-618.92,0.00016438,2]
[335217241,1723987844974,-504.05644384,0.00016438,2]
[335217242,1723987844983,-500.0,0.00016438,2]
[335217243,1723987844993,-500.0,0.00016438,2]
[335217244,1723987845003,-2708.0,0.00016438,2]
[335217245,1723987845012,-502.01994795,0.00016438,2]
[335217246,1723987845022,-1058.75,0.00016438,2]
[335217247,1723987845032,-500.0,0.00016438,2]
[335217248,1723987845042,-500.0,0.00016438,2]
[335217249,1723987845054,-500.0,0.00016438,2]
[335217250,1723987845064,-500.0,0.00016438,2]
[335217251,1723987845074,-500.0,0.00016438,2]
[335217252,1723987845084,-500.0,0.00016438,2]
[335217253,1723987845094,-505.68019105,0.00016438,2]
[335217254,1723987845103,-727.38,0.00016438,2]
[335217255,1723987845113,-1207.97,0.00016438,2]
[335217256,1723987845122,-508.62149033,0.00016438,2]
[335217257,1723987845131,-1226.39,0.00016438,2]
[335217258,1723987845141,-500.0,0.00016438,2]
[335217259,1723987845151,-500.0,0.00016438,2]
[335217260,1723987845161,-500.0,0.00016438,2]
[335217261,1723987845171,-454.33912668,0.00016438,2]
[335217262,1723987845180,-502.45859411,0.00016438,2]
[335217263,1723987845189,-500.0,0.00016438,2]
[335217264,1723987845199,-500.0,0.00016438,2]
[335217265,1723987845208,-500.0,0.00016438,2]
[335217266,1723987845218,-505.24353292,0.00016438,2]
[335217267,1723987845227,-1045.59,0.00016438,2]
[335217268,1723987845237,-500.0,0.00016438,2]
[335217269,1723987845246,-500.0,0.00016438,2]
[335217270,1723987845256,-500.0,0.00016438,2]
[335217271,1723987845265,-500.0,0.00016438,2]
[335217272,1723987845275,-534.19,0.00016438,2]
[335217273,1723987845284,-500.0,0.00016438,2]
[335217274,1723987845294,-500.0,0.00016438,2]
[335217275,1723987845310,-500.0,0.00016438,2]
[335217276,1723987845319,-500.0,0.00016438,2]
[335217277,1723987845328,-500.0,0.00016438,2]
[335217278,1723987845339,-505.51210129,0.00016438,2]
[335217279,1723987845348,-500.0,0.00016438,2]
[335217280,1723987845357,-504.66007728,0.00016438,2]
[335217281,1723987845367,-685.54,0.00016438,2]
[335217282,1723987845475,-500.0,0.00016438,2]
[335217283,1723987845487,-509.76833442,0.00016438,2]
[335217284,1723987845498,-507.65850958,0.00016438,2]
[335217285,1723987845508,-500.0,0.00016438,2]
[335217286,1723987845519,-565.50512077,0.00016438,2]
[335217287,1723987845528,-500.0,0.00016438,2]
[335217288,1723987845539,-503.76485255,0.00016438,2]
[335217289,1723987845550,-607.45,0.00016438,2]
[335217290,1723987845562,-500.0,0.00016438,2]
[335217291,1723987845573,-500.0,0.00016438,2]
[335217293,1723987845583,-500.0,0.00016438,2]
[335217295,1723987845594,-500.0,0.00016438,2]
[335217296,1723987845604,-1065.72,0.00016438,2]
[335217297,1723987845614,-592.28,0.00016438,2]
[335217298,1723987845624,-500.0,0.00016438,2]
[335217299,1723987845633,-514.57750072,0.00016438,2]
[335217300,1723987845642,-500.0,0.00016438,2]
[335217301,1723987845651,-1932.23,0.00016438,2]
[335217302,1723987845661,-500.0,0.00016438,2]
[335217303,1723987845670,-500.0,0.00016438,2]
[335217304,1723987845680,-508.68572364,0.00016438,2]
[335217305,1723987845689,-500.0,0.00016438,2]
[335217306,1723987845698,-1316.23,0.00016438,2]
[335217307,1723987845708,-500.0,0.00016438,2]
[335217308,1723987845717,-500.0,0.00016438,2]
[335217309,1723987845726,-825.7,0.00016438,2]
[335217310,1723987845735,-824.8,0.00016438,2]
[335217311,1723987845745,-1768.11,0.00016438,2]
[335217313,1723987845755,-379.85518857,0.00016438,2]
[335217315,1723987845766,-500.0,0.00016438,2]
[335217316,1723987845776,-500.0,0.00016438,2]
[335217317,1723987845787,-507.75576917,0.00016438,2]
[335217318,1723987845795,-501.7969771,0.00016438,2]
[335217319,1723987845806,-500.0,0.00016438,2]
[335217321,1723987845816,-500.0,0.00016438,2]
[335217323,1723987845825,-500.0,0.00016438,2]
[335217325,1723987845834,-1144.56,0.00016438,2]
[335217326,1723987845843,-500.0,0.00016438,2]
[335217327,1723987845852,-500.0,0.00016438,2]
[335217328,1723987845862,-500.0,0.00016438,2]
[335217329,1723987845871,-500.0,0.00016438,2]
[335217330,1723987845880,-500.0,0.00016438,2]
[335217331,1723987845890,-500.0,0.00016438,2]
[335217332,1723987845899,-500.0,0.00016438,2]
[335217333,1723987845909,-500.0,0.00016438,2]
[335217334,1723987845918,-512.46796529,0.00016438,2]
[335217335,1723987845928,-500.0,0.00016438,2]
[335217336,1723987845937,-500.0,0.00016438,2]
[335217337,1723987845946,-500.0,0.00016438,2]
[335217338,1723987845955,-539.27040279,0.00016438,2]
[335217339,1723987845965,-500.0,0.00016438,2]
[335217340,1723987845974,-500.0,0.00016438,2]
[335217341,1723987845985,-604.44,0.00016438,2]
[335217342,1723987845995,-505.48558456,0.00016438,2]
[335217343,1723987846006,-500.0,0.00016438,2]
[335217344,1723987846016,-500.0,0.00016438,2]
[335217345,1723987846027,-500.0,0.00016438,2]
[335217346,1723987846039,-500.0,0.00016438,2]
[335217347,1723987846048,-511.64450692,0.00016438,2]
[335217348,1723987846060,-166.30995301,0.00016438,2]
[335217349,1723987846071,-843.92,0.00016438,2]
[335217350,1723987846081,-500.0,0.00016438,2]
[335217351,1723987846091,-379.65994937,0.00016438,2]
[335217352,1723987846100,-500.0,0.00016438,2]
[335217353,1723987846111,-1121.11,0.00016438,2]
[335217354,1723987846123,-500.0,0.00016438,2]
[335217355,1723987846132,-500.0,0.00016438,2]
[335217356,1723987846142,-500.0,0.00016438,2]
[335217357,1723987846152,-500.0,0.00016438,2]
[335217358,1723987846163,-592.23,0.00016438,2]
[335217359,1723987846173,-500.0,0.00016438,2]
[335217360,1723987846183,-500.0,0.00016438,2]
[335217361,1723987846193,-500.0,0.00016438,2]
[335217362,1723987846204,-500.0,0.00016438,2]
[335217363,1723987846215,-515.79324204,0.00016438,2]
[335217364,1723987846225,-500.0,0.00016438,2]
[335217365,1723987846235,-500.0,0.00016438,2]
[335217366,1723987846245,-500.0,0.00016438,2]
[335217367,1723987846253,-500.0,0.00016438,2]
[335217368,1723987846263,-500.0,0.00016438,2]
[335217369,1723987846272,-500.0,0.00016438,2]
[335217370,1723987846282,-500.0,0.00016438,2]
[335217371,1723987846291,-768.86,0.00016438,2]
[335217372,1723987846306,-500.0,0.00016438,2]
[335217373,1723987846315,-896.83,0.00016438,2]
[335217374,1723987846324,-511.64760546,0.00016438,2]
[335217375,1723987846333,-500.0,0.00016438,2]
[335217376,1723987846343,-987.41,0.00016438,2]
[335217377,1723987846351,-500.0,0.00016438,2]
[335217378,1723987846360,-500.0,0.00016438,2]
[335217379,1723987846369,-500.0,0.00016438,2]
[335217380,1723987846382,-668.29,0.00016438,2]
[335217381,1723987846392,-500.0,0.00016438,2]
[335217382,1723987846401,-1019.02,0.00016438,2]
[335217383,1723987846411,-500.0,0.00016438,2]
[335217384,1723987846420,-500.0,0.00016438,2]
[335217385,1723987846430,-500.0,0.00016438,2]
[335217386,1723987846439,-2221.95,0.00016438,2]
[335217387,1723987846448,-919.11,0.00016438,2]
[335217388,1723987846457,-500.0,0.00016438,2]
[335217389,1723987846467,-500.0,0.00016438,2]
[335217390,1723987846476,-521.75951476,0.00016438,2]
[335217391,1723987846485,-579.89,0.00016438,2]
[335217392,1723987846494,-798.58,0.00016438,2]
[335217393,1723987846503,-888.46,0.00016438,2]
[335217394,1723987846514,-151.0,0.00016438,2]
[335217395,1723987846523,-151.0,0.00016438,2]
[335217396,1723987846532,-500.0,0.00016438,2]
[335217397,1723987846542,-151.0,0.00016438,2]
[335217398,1723987846551,-677.44,0.00016438,2]
[335217399,1723987846561,-151.0,0.00016438,2]
[335217400,1723987846570,-500.0,0.00016438,2]
[335217401,1723987846580,-500.0,0.00016438,2]
[335217402,1723987846589,-500.0,0.00016438,2]
[335217403,1723987846598,-500.0,0.00016438,2]
[335217404,1723987846608,-2766.47,0.00016438,2]
[335217405,1723987846618,-508.26415308,0.00016438,2]
[335217406,1723987846627,-500.0,0.00016438,2]
[335217407,1723987846637,-794.6,0.00016438,2]
[335217408,1723987846645,-699.53,0.00016438,2]
[335217409,1723987846655,-500.0,0.00016438,2]
[335217410,1723987846664,-500.0,0.00016438,2]
[335217411,1723987846673,-500.0,0.00016438,2]
[335217412,1723987846683,-837.87,0.00016438,2]
[335217413,1723987846694,-500.0,0.00016438,2]
[335217414,1723987846703,-500.0,0.00016438,2]
[335217415,1723987846713,-751.19,0.00016438,2]
[335217416,1723987846729,-482.46625134,0.00016438,2]
[335217417,1723987846744,-502.35481281,0.00016438,2]
[335217418,1723987846753,-500.0,0.00016438,2]
[335217419,1723987846763,-954.92,0.00016438,2]
[335217420,1723987846772,-759.09,0.00016438,2]
[335217421,1723987846782,-1990.91,0.00016438,2]
[335217422,1723987846791,-500.0,0.00016438,2]
[335217423,1723987846801,-500.0,0.00016438,2]
[335217424,1723987846812,-508.99906591,0.00016438,2]
[335217425,1723987846822,-699.72,0.00016438,2]
[335217426,1723987846831,-1068.78,0.00016438,2]
[335217427,1723987846841,-500.0,0.00016438,2]
[335217428,1723987846851,-750.43,0.00016438,2]
[335217429,1723987846860,-500.0,0.00016438,2]
[335217430,1723987846870,-500.0,0.00016438,2]
[335217431,1723987846880,-500.0,0.00016438,2]
[335217432,1723987846890,-500.0,0.00016438,2]
[335217433,1723987846899,-854.51,0.00016438,2]
[335217434,1723987846909,-500.0,0.00016438,2]
[335217435,1723987846918,-506.59060356,0.00016438,2]
[335217436,1723987846928,-500.0,0.00016438,2]
[335217437,1723987846937,-500.0,0.00016438,2]
[335217438,1723987846946,-500.0,0.00016438,2]
[335217439,1723987846956,-500.0,0.00016438,2]
[335217440,1723987846965,-466.80532712,0.00016438,2]
[335217441,1723987846975,-500.0,0.00016438,2]
[335217442,1723987846984,-500.0,0.00016438,2]
[335217443,1723987846994,-500.0,0.00016438,2]
[335217444,1723987847003,-500.0,0.00016438,2]
[335217445,1723987847013,-500.0,0.00016438,2]
[335217446,1723987847022,-542.23948546,0.00016438,2]
[335217447,1723987847032,-500.0,0.00016438,2]
[335217448,1723987847043,-500.0,0.00016438,2]
[335217449,1723987847054,-814.14,0.00016438,2]
[335217450,1723987847063,-880.39,0.00016438,2]
[335217451,1723987847074,-500.0,0.00016438,2]
[335217452,1723987847083,-745.57,0.00016438,2]
[335217453,1723987847093,-500.0,0.00016438,2]
[335217454,1723987847102,-500.0,0.00016438,2]
[335217455,1723987847112,-500.0,0.00016438,2]
[335217456,1723987847121,-757.9,0.00016438,2]
[335217457,1723987847131,-532.89220378,0.000165,2]
[335217458,1723987847140,-150.112234,0.000167,2]
[335217459,1723987847150,-150.112236,0.000167,2]
[335217460,1723987847159,-500.0,0.000167,2]
[335217461,1723987847169,-500.0,0.00016701,2]
[335217462,1723987847178,-500.0,0.00016701,2]
[335217463,1723987847188,-500.0,0.00016711,2]
[335217464,1723987847197,-468.77682635,0.00016711,2]
[335217465,1723987847206,-151.0,0.00016711,2]
[335217466,1723987847217,-151.0,0.00016711,2]
[335217467,1723987847226,-500.0,0.00016711,2]
[335217468,1723987847236,-500.0,0.00016712,2]
[335217469,1723987847246,-500.0,0.00016712,2]
[335217470,1723987847257,-676.41,0.00016712,2]
[335217471,1723987847267,-500.0,0.00016712,2]
[335217472,1723987847280,-500.0,0.00016712,2]
[335217473,1723987847415,-500.0,0.00016712,2]
[335217474,1723987847427,-500.0,0.00016712,2]
[335217475,1723987847440,-571.39,0.00016712,2]
[335217476,1723987847452,-509.52729507,0.00016712,2]
[335217477,1723987847462,-514.58,0.00016712,2]
[335217478,1723987847474,-500.0,0.00016712,2]
[335217479,1723987847483,-500.0,0.00016712,2]
[335217480,1723987847494,-500.0,0.00016712,2]
[335217481,1723987847504,-500.0,0.00016712,2]
[335217482,1723987847518,-500.0,0.00016712,2]
[335217483,1723987847529,-500.0,0.00016712,2]
[335217484,1723987847540,-500.0,0.00016712,2]
[335217485,1723987847551,-500.0,0.00016712,2]
[335217486,1723987847569,-501.02611279,0.00016712,2]
[335217487,1723987847579,-522.51656014,0.00016712,2]
[335217488,1723987847590,-500.0,0.00016712,2]
[335217489,1723987847601,-500.0,0.00016712,2]
[335217490,1723987847611,-500.0,0.00016712,2]
[335217491,1723987847623,-415.53294663,0.00016712,2]
[335217492,1723987847634,-610.10930005,0.00016712,2]
[335217493,1723987847644,-500.0,0.00016712,2]
[335217494,1723987847655,-660.33,0.00016712,2]
[335217495,1723987847664,-674.77,0.00016712,2]
[335217496,1723987847674,-502.63474682,0.00016712,2]
[335217497,1723987847684,-500.0,0.00016712,2]
[335217498,1723987847696,-526.31895576,0.00016712,2]
[335217499,1723987847707,-503.26337526,0.00016712,2]
[335217500,1723987847717,-500.0,0.00016712,2]
[335217501,1723987847728,-500.0,0.00016712,2]
[335217502,1723987847740,-105.60736453,0.00016712,2]
[335217503,1723987848030,-394.39263547,0.00016712,2]
[335217504,1723987848039,-38.4638379,0.00016712,2]
[335217505,1723987848182,-712.2761621,0.00016712,2]
[335217506,1723987848192,-500.0,0.00016712,2]
[335217507,1723987848201,-500.0,0.00016712,2]
[335217508,1723987848211,-503.93529281,0.00016712,2]
[335217509,1723987848220,-500.0,0.00016712,2]
[335217510,1723987848230,-538.45,0.00016712,2]
[335217511,1723987848240,-500.0,0.00016712,2]
[335217512,1723987848249,-500.0,0.00016712,2]
[335217513,1723987848259,-515.51,0.00016712,2]
[335217514,1723987848270,-500.0,0.00016712,2]
[335217515,1723987848279,-500.0,0.00016712,2]
[335217516,1723987848289,-756.75,0.00016712,2]
[335217517,1723987848302,-500.0,0.00016712,2]
[335217518,1723987848313,-500.0,0.00016712,2]
[335217519,1723987848322,-500.0,0.00016712,2]
[335217520,1723987848331,-500.0,0.00016712,2]
[335217521,1723987848343,-500.0,0.00016712,2]
[335217522,1723987848354,-1355.37,0.00016712,2]
[335217523,1723987848366,-500.0,0.00016712,2]
[335217524,1723987848379,-500.0,0.00016712,2]
[335217525,1723987848390,-500.0,0.00016712,2]
[335217526,1723987848401,-239.63913281,0.00016712,2]
[335217527,1723987848413,-260.36086719,0.00016712,2]
[335217528,1723987848424,-516.1702096,0.00016712,2]
[335217529,1723987848434,-148.09165729,0.00016712,2]
[335217530,1723987848447,-351.90834271,0.00016712,2]
[335217531,1723987848458,-474.35425249,0.00016712,2]
[335217532,1723987848471,-500.0,0.00016712,2]